fUSD/lending_fUSD_20250804
["ID","MTS","AMOUNT","RATE_DAILY","PERIOD"]
[377266362,1754308255042,-1292.0,0.00046824,2]
[377266363,1754308255052,-597.0,0.00046824,2]
[377266364,1754308255062,-2023.0,0.00046824,2]
[377266365,1754308255071,-958.0,0.00046824,2]
[377266366,1754308255082,-564.0,0.00046824,2]
[377266367,1754308255092,-1651.0,0.00046824,2]
[377266368,1754308255102,-3792.239,0.00046824,2]
[377266369,1754308255112,-4137.0,0.00046824,2]
[377266370,1754308255122,-6070.0,0.00046824,2]
[377266371,1754308255132,-5800.0,0.00046832,14]
[377266372,1754308255142,-5800.0,0.00046841,14]
[377266373,1754308255151,-587.24,0.00046848,120]
[377266374,1754308255162,-400.0,0.00046848,120]
[377266375,1754308255172,-344.67,0.00046848,120]
[377266376,1754308255182,-361.86,0.00046848,120]
[377266377,1754308255192,-486.1,0.00046848,120]
[377266378,1754308255202,-502.2,0.00046848,120]
[377266379,1754308255211,-400.0,0.00046848,120]
[377266380,1754308255221,-5800.0,0.00046849,14]
[377266381,1754308255231,-250.74527969,0.00046849,120]
[377266382,1754308255241,-15354.16393423,0.000469,2]
[377266383,1754308255252,-151.0,0.000469,120]
[377266384,1754308255262,-206.5595,0.000469,120]
[377266385,1754308255280,-1000.0,0.0004697,3]
[377266386,1754308255293,-1480.92716924,0.0004697,3]
[377266387,1754308255304,-9795.20485475,0.00046975,15]
[377266388,1754308255315,-2807.53463428,0.00046999,60]
[377266389,1754308255325,-2524.41259078,0.00047,2]
[377266390,1754308255335,-679.0,0.0004701,2]
[377266391,1754308255346,-648.38,0.00047032,120]
[377266392,1754308255357,-1000.0,0.0004707,3]
[377266393,1754308255367,-587.24,0.00047122,120]
[377266394,1754308255378,-480.18686924,0.00047122,120]
[377266395,1754308255390,-486.1,0.00047122,120]
[377266396,1754308255403,-502.2,0.00047122,120]
[377266397,1754308255413,-400.0,0.00047122,120]
[377266398,1754308255423,-300.0,0.00047166,120]
[377266399,1754308255434,-151.0,0.000472,120]
[377266400,1754308255445,-152.0,0.00047228,6]
[377266401,1754308255455,-504.0,0.00047243,11]
[377266402,1754308255465,-214.21,0.000473,30]
[377266403,1754308255475,-386.73271183,0.00047348,120]
[377266404,1754308255487,-2218.9,0.00047393,120]
[377266405,1754308255497,-587.24,0.00047396,120]
[377266406,1754308255508,-486.1,0.00047396,120]
[377266407,1754308255518,-502.2,0.00047396,120]
[377266408,1754308255529,-491.42,0.00047396,120]
[377266409,1754308255538,-999.0,0.00047397,120]
[377266410,1754308255548,-846.39,0.000474,14]
[377266411,1754308255558,-250.0,0.000474,2]
[377266412,1754308255569,-900.0,0.000474,2]
[377266413,1754308255579,-422.1152736,0.00047402,120]
[377266414,1754308255589,-171.00283647,0.00047485,15]
[377266415,1754308255599,-5262.89564129,0.000476,2]
[377266416,1754308255610,-587.24,0.0004767,120]
[377266417,1754308255620,-486.1,0.0004767,120]
[377266418,1754308255631,-502.2,0.0004767,120]
[377266419,1754308255642,-195.66,0.0004767,120]
[377266420,1754308255652,-150.0,0.00047671,31]
[377266421,1754308255663,-1600.0,0.00047718,120]
[377266422,1754308255672,-1000.0,0.0004777,10]
[377266423,1754308255683,-2349.86,0.0004789,7]
[377266424,1754308255692,-2900.77,0.0004789,7]
[377266425,1754308255703,-1500.0,0.0004789,47]
[377266426,1754308255714,-151.0,0.000479,120]
[377266427,1754308255724,-150.0,0.00047934,2]
[377266428,1754308255734,-587.24973785,0.00047944,120]
[377266429,1754308255744,-486.11,0.00047944,120]
[377266430,1754308255754,-502.22,0.00047944,120]
[377266431,1754308255765,-157.76,0.00047945,2]
[377266432,1754308255775,-1000.0,0.0004797,3]
[377266433,1754308255787,-1000.0,0.0004797,3]
[377266434,1754308255797,-78872.45537556,0.00048,7]
[377266435,1754308255807,-744.68,0.00048,2]
[377266436,1754308255817,-663.0,0.0004804,2]
[377266437,1754308255828,-504.0,0.0004804,14]
[377266438,1754308255838,-180.0,0.00048132,37]
[377266439,1754308255848,-161.62,0.000483,120]
[377266440,1754308255858,-155.41430343,0.0004835,2]
[377266441,1754308255867,-200.0,0.00048387,3]
[377266442,1754308255877,-151.0,0.000484,120]
[377266443,1754308255887,-464.8,0.000485,14]
[377266444,1754308255897,-150.0,0.000485,2]
[377266445,1754308255907,-1000.0,0.00048653,2]
[377266446,1754308255920,-525.64509728,0.00048666,2]
[377266447,1754308255930,-288.73031269,0.00048706,28]
[377266448,1754308255939,-648.38,0.00048763,120]
[377266449,1754308255949,-669.93982987,0.00048831,2]
[377266450,1754308255958,-504.0,0.00048838,17]
[377266451,1754308255967,-1083.0,0.00048884,30]
[377266452,1754308255977,-151.0,0.000489,120]
[377266453,1754308255987,-9795.20485475,0.00048905,15]
[377266454,1754308255996,-1500.0,0.0004896,47]
[377266455,1754308256007,-152.0,0.00048968,7]
[377266456,1754308256017,-814.23456245,0.00048997,2]
[377266457,1754308256028,-195.66,0.0004904,120]
[377266458,1754308256038,-150.0,0.00049041,32]
[377266459,1754308256048,-1033.0009,0.00049068,3]
[377266460,1754308256058,-2000.0,0.00049068,3]
[377266461,1754308256068,-2000.0,0.00049068,3]
[377266462,1754308256078,-2000.0,0.00049068,3]
[377266463,1754308256087,-646.0,0.0004907,2]
[377266464,1754308256097,-275.95287659,0.0004914,10]
[377266465,1754308256107,-958.52929504,0.00049162,2]
[377266466,1754308256117,-999.0,0.00049178,120]
[377266467,1754308256126,-2218.9,0.00049193,120]
[377266468,1754308256136,-600.0,0.00049205,18]
[377266469,1754308256146,-600.0,0.00049205,18]
[377266470,1754308256155,-604.61022774,0.00049205,18]
[377266471,1754308256165,-600.0,0.00049205,18]
[377266472,1754308256176,-600.0,0.00049205,18]
[377266473,1754308256185,-600.0,0.00049205,18]
[377266474,1754308256195,-600.0,0.00049205,18]
[377266475,1754308256205,-600.0,0.00049205,18]
[377266476,1754308256215,-600.0,0.00049205,18]
[377266477,1754308256224,-600.0,0.00049205,18]
[377266478,1754308256234,-600.0,0.00049205,18]
[377266479,1754308256244,-600.0,0.00049205,18]
[377266480,1754308256253,-600.0,0.00049205,18]
[377266481,1754308256263,-600.0,0.00049205,38]
[377266482,1754308256273,-400.0,0.0004927,3]
[377266483,1754308256283,-501.90794635,0.0004927,3]
[377266484,1754308256292,-2000.0,0.000493,2]
[377266485,1754308256302,-150.0,0.00049304,2]
[377266486,1754308256311,-278.472642,0.00049306,60]
[377266487,1754308256321,-500.0,0.00049315,120]
[377266488,1754308256471,-500.0,0.00049315,120]
[377266489,1754308256481,-679.0,0.00049315,120]
[377266490,1754308256490,-500.0,0.00049315,120]
[377266491,1754308256500,-500.0,0.00049315,120]
[377266492,1754308256509,-500.0,0.00049315,120]
[377266493,1754308256518,-150.0,0.00049315,120]
[377266494,1754308256528,-500.0,0.00049315,120]
[377266495,1754308256538,-150.0,0.00049315,120]
[377266496,1754308256547,-500.0,0.00049315,120]
[377266497,1754308256556,-500.0,0.00049315,120]
[377266498,1754308256566,-500.0,0.00049315,120]
[377266499,1754308256576,-709.0,0.00049315,120]
[377266500,1754308256585,-150.0,0.00049315,120]
[377266501,1754308256598,-500.0,0.00049315,120]
[377266502,1754308256608,-546.0,0.00049315,120]
[377266503,1754308256618,-500.0,0.00049315,120]
[377266504,1754308256627,-150.0,0.00049315,2]
[377266505,1754308256639,-500.0,0.00049315,120]
[377266506,1754308256649,-500.0,0.00049315,120]
[377266507,1754308256659,-150.0,0.00049315,2]
[377266508,1754308256668,-451.0,0.00049315,120]
[377266509,1754308256680,-300.0,0.00049315,120]
[377266510,1754308256692,-150.0,0.00049315,120]
[377266511,1754308256701,-500.0,0.00049315,120]
[377266512,1754308256711,-150.47126855,0.00049315,120]
[377266513,1754308256724,-432.0,0.00049315,120]
[377266514,1754308256734,-500.0,0.00049315,2]
[377266515,1754308256744,-500.0,0.00049315,120]
[377266516,1754308256753,-500.0,0.00049315,120]
[377266517,1754308256763,-522.0,0.00049315,120]
[377266518,1754308256772,-500.0,0.00049315,120]
[377266519,1754308256783,-500.0,0.00049315,120]
[377266520,1754308256792,-628.0,0.00049315,120]
[377266521,1754308256802,-200.0,0.00049315,120]
[377266522,1754308256812,-1102.82402763,0.00049328,2]
[377266523,1754308256822,-173823.3105487,0.00049399,5]
[377266524,1754308256831,-1500.0,0.0004944,47]
[377266525,1754308256841,-1687.11713924,0.00049484,36]
[377266526,1754308256850,-1247.11876022,0.00049493,2]
[377266527,1754308256860,-151.0,0.000495,120]
[377266528,1754308256869,-500.0,0.00049589,120]
[377266529,1754308256878,-500.0,0.00049589,120]
[377266530,1754308256887,-679.0,0.00049589,120]
[377266531,1754308256897,-500.0,0.00049589,120]
[377266532,1754308256907,-501.89027551,0.00049589,120]
[377266533,1754308256917,-500.0,0.00049589,120]
[377266534,1754308256927,-210.59527902,0.00049589,120]
[377266535,1754308256937,-500.0,0.00049589,120]
[377266536,1754308256946,-150.0,0.00049589,120]
[377266537,1754308256955,-500.0,0.00049589,120]
[377266538,1754308256965,-500.0,0.00049589,120]
[377266539,1754308256974,-508.21645034,0.00049589,120]
[377266540,1754308256983,-709.0,0.00049589,120]
[377266541,1754308256994,-150.0,0.00049589,120]
[377266542,1754308257004,-559.43424027,0.00049589,120]
[377266544,1754308257013,-546.0,0.00049589,120]
[377266546,1754308257023,-500.0,0.00049589,120]
[377266548,1754308257033,-500.0,0.00049589,120]
[377266550,1754308257042,-500.0,0.00049589,120]
[377266552,1754308257052,-451.0,0.00049589,120]
[377266554,1754308257062,-150.86813819,0.00049589,120]
[377266556,1754308257071,-500.0,0.00049589,120]
[377266558,1754308257081,-432.0,0.00049589,120]
[377266560,1754308257091,-500.0,0.00049589,2]
[377266563,1754308257101,-500.0,0.00049589,120]
[377266565,1754308257110,-500.0,0.00049589,120]
[377266567,1754308257120,-522.0,0.00049589,120]
[377266568,1754308257130,-500.0,0.00049589,120]
[377266569,1754308257141,-500.0,0.00049589,120]
[377266570,1754308257151,-628.0,0.00049589,120]
[377266571,1754308257161,-1000.0,0.000496,120]
[377266572,1754308257171,-504.0,0.00049635,20]
[377266573,1754308257180,-200.0,0.00049654,120]
[377266574,1754308257190,-1391.4134928,0.00049659,2]
[377266575,1754308257200,-171.00283647,0.00049748,15]
[377266576,1754308257210,-1000.0,0.000498,120]
[377266577,1754308257220,-151.0,0.000498,120]
[377266578,1754308257230,-1535.70822539,0.00049824,2]
[377266579,1754308257240,-809.0,0.00049824,2]
[377266580,1754308257249,-955.0,0.00049824,2]
[377266581,1754308257258,-2508.177,0.00049824,2]
[377266582,1754308257267,-1251.0,0.00049824,2]
[377266583,1754308257278,-1292.0,0.00049824,2]
[377266584,1754308257287,-597.0,0.00049824,2]
[377266585,1754308257297,-2023.0,0.00049824,2]
[377266586,1754308257306,-564.0,0.00049824,2]
[377266587,1754308257316,-1651.0,0.00049824,2]
[377266588,1754308257326,-388.901,0.00049824,2]
[377266589,1754308257335,-770.899,0.00049824,2]
[377266590,1754308257345,-1617.91,0.0004986,2]
[377266591,1754308257354,-500.0,0.00049863,120]
[377266592,1754308257364,-500.0,0.00049863,120]
[377266593,1754308257374,-679.0,0.00049863,120]
[377266594,1754308257383,-201.56285772,0.00049863,120]
[377266595,1754308257395,-500.0,0.00049863,120]
[377266596,1754308257405,-500.0,0.00049863,120]
[377266597,1754308257414,-150.0,0.00049863,120]
[377266598,1754308257424,-263.34800071,0.00049863,120]
[377266599,1754308257434,-500.0,0.00049863,120]
[377266600,1754308257444,-709.0,0.00049863,120]
[377266601,1754308257453,-150.0,0.00049863,120]
[377266602,1754308257462,-546.0,0.00049863,120]
[377266603,1754308257472,-500.0,0.00049863,120]
[377266604,1754308257482,-500.0,0.00049863,120]
[377266605,1754308257492,-500.0,0.00049863,120]
[377266606,1754308257502,-451.0,0.00049863,120]
[377266607,1754308257511,-500.0,0.00049863,120]
[377266608,1754308257521,-432.0,0.00049863,120]
[377266609,1754308257530,-500.0,0.00049863,2]
[377266610,1754308257539,-500.0,0.00049863,120]
[377266611,1754308257549,-500.0,0.00049863,120]
[377266612,1754308257558,-522.0,0.00049863,120]
[377266613,1754308257568,-500.0,0.00049863,120]
[377266614,1754308257577,-500.0,0.00049863,120]
[377266615,1754308257588,-628.0,0.00049863,120]
[377266616,1754308257597,-2588.49149149,0.000499,2]
[377266617,1754308257607,-204.0,0.0004996,30]
[377266618,1754308257616,-204.0,0.0004996,30]
[377266619,1754308257626,-303.42652598,0.00049961,120]
[377266620,1754308257636,-42942.61182765,0.0004999,2]
[377266621,1754308257645,-50000.0,0.0004999,30]
[377266622,1754308257656,-1680.00295798,0.0004999,2]
[377266623,1754308257666,-500.0,0.00049999,120]
[377266624,1754308257676,-400.11938866,0.00049999,120]
[377266625,1754308257687,-198.92533609,0.00049999,120]
[377266626,1754308257697,-247.48860417,0.00049999,120]
[377266627,1754308257707,-353.210339,0.00049999,120]
[377266628,1754308257717,-1141.35517974,0.0005,2]
[377266629,1754308257726,-504.12991563,0.0005,120]
[377266630,1754308257736,-161.62,0.0005,120]
[377266631,1754308257746,-116985.05374317,0.0005,120]
[377266632,1754308258449,-16527.54280154,0.0005,120]
[377266633,1754308258487,-314.00000108,0.0005,120]
[377266634,1754308258513,-902.4464822,0.0005,120]
[377266635,1754308258528,-9617.46680532,0.0005,120]
[377266636,1754308259722,-546.006,0.00044911,30]
[377266637,1754308259734,-983.50377013,0.00044911,30]
[377266638,1754308259747,-106.23022987,0.00044911,30]
[377266639,1754308259757,-204.68095024,0.00049315,60]
[377266640,1754308259790,-295.31904976,0.00049315,60]
[377266641,1754308259801,-150.0,0.00049315,120]
[377266642,1754308259812,-156.33387664,0.00049589,60]
[377266643,1754308259835,-343.66612336,0.00049589,60]
[377266644,1754308259845,-150.0,0.00049589,120]
[377266645,1754308259855,-250.71750424,0.00049863,60]
[377266646,1754308259870,-46.99572491,0.00049863,120]
[377266648,1754308310542,155.0,0.00030136,120]
[377266656,1754308414596,500.0,0.00024932,2]
[377266657,1754308414919,500.0,0.00024932,2]
[377266658,1754308415366,500.0,0.00024932,2]
[377266659,1754308415783,500.0,0.00024932,2]
[377266660,1754308430887,2250.0,0.00030137,120]
[377266662,1754308433606,156.01,0.00029072,2]
[377266833,1754309014021,500.0,0.00024932,2]
[377266834,1754309014381,500.0,0.00024932,2]
[377266835,1754309014782,500.0,0.00024932,2]
[377266864,1754309196667,153.64,0.00013699,2]
[377266865,1754309196887,153.64,0.00021404,2]
[377266866,1754309197130,153.64,0.0002911,2]
[377266882,1754309308242,-159.98922793,0.00030036,2]
[377266883,1754309308282,-2089.58044818,0.00030136,2]
[377266884,1754309308320,-1200.0,0.00030136,2]
[377266885,1754309308356,-600.0,0.00030136,2]
[377266886,1754309308392,-720.0,0.00030136,2]
[377266887,1754309308427,-215.0,0.00030136,2]
[377266888,1754309308462,-400.0,0.00030136,2]
[377266889,1754309308497,-380.02154895,0.00030137,120]
[377266890,1754309308533,-313.50107745,0.00030137,120]
[377266891,1754309308570,-310.17505387,0.00030137,120]
[377266892,1754309308610,-310.00875269,0.00030137,120]
[377266893,1754309308645,-310.00043763,0.00030137,120]
[377266894,1754309308680,-310.00002188,0.00030137,120]
[377266895,1754309308715,-507.84,0.00030378,2]
[377266896,1754309308752,-155.69583994,0.000314,2]
[377266897,1754309308790,-185.629,0.00031584,120]
[377266898,1754309308828,-155.69583994,0.00031706,2]
[377266899,1754309308863,-1244.591619,0.00031778,2]
[377266900,1754309308897,-300.0,0.00031812,2]
[377266901,1754309308934,-175.0,0.00031812,7]
[377266902,1754309308969,-261.66,0.00031812,4]
[377266903,1754309309008,-202.43265453,0.000319,25]
[377266904,1754309309043,-507.84,0.00032109,2]
[377266905,1754309309080,-560.0,0.00032475,2]
[377266906,1754309309115,-184.9,0.00032895,5]
[377266907,1754309309150,-1000.0,0.0003304,120]
[377266908,1754309309184,-1626.780761,0.00033293,2]
[377266909,1754309309219,-155.69583994,0.00033376,2]
[377266910,1754309309252,-234.46,0.00033461,3]
[377266912,1754309309287,-507.84,0.00033839,2]
[377266913,1754309309322,-613.89,0.000345,2]
[377266914,1754309309357,-250.0,0.000345,2]
[377266915,1754309309392,-184.9,0.0003454,6]
[377266916,1754309309428,-1500.0,0.00034569,120]
[377266917,1754309309463,-150.0,0.000347,30]
[377266919,1754309309498,-783.0,0.00034996,2]
[377266921,1754309309534,-157.53,0.0003503,2]
[377266922,1754309309571,-157.53,0.00035052,2]
[377266923,1754309309607,-157.53,0.00035074,2]
[377266924,1754309309642,-157.53,0.00035096,2]
[377266925,1754309309677,-157.53,0.00035118,2]
[377266926,1754309309712,-157.53,0.00035139,2]
[377266927,1754309309762,-157.53,0.00035161,2]
[377266928,1754309309805,-157.53,0.00035183,2]
[377266929,1754309309850,-157.53,0.00035205,2]
[377266930,1754309309891,-157.53,0.00035227,2]
[377266931,1754309309939,-157.53,0.00035249,2]
[377266932,1754309309985,-157.53,0.00035271,2]
[377266933,1754309310029,-157.53,0.00035293,2]
[377266934,1754309310074,-157.53,0.00035315,2]
[377266935,1754309310117,-157.53,0.00035336,2]
[377266936,1754309310157,-157.53,0.00035358,2]
[377266937,1754309310196,-157.53,0.0003538,2]
[377266938,1754309310236,-507.84,0.0003557,2]
[377266939,1754309310273,-165.64,0.00035858,2]
[377266940,1754309310311,-1600.0,0.00035858,120]
[377266941,1754309310355,-1000.0,0.00035858,2]
[377266942,1754309310400,-200.0,0.00035858,2]
[377266943,1754309310443,-175.47,0.00035987,30]
[377266944,1754309310488,-184.9,0.00036185,7]
[377266945,1754309310530,-5282.28,0.00036547,2]
[377266946,1754309310571,-153.64,0.00036815,2]
[377266947,1754309310611,-150.0,0.00036851,120]
[377266948,1754309310649,-666.0,0.00037122,3]
[377266949,1754309310687,-507.84,0.000373,2]
[377266950,1754309310721,-1097.0,0.00037713,2]
[377266951,1754309310747,-553.661,0.0003783,49]
[377266952,1754309310772,-184.9,0.0003783,15]
[377266953,1754309310797,-12221.12,0.00037946,2]
[377266954,1754309311732,-218.56,0.00037946,2]
[377266955,1754309311809,-150.0,0.00037946,2]
[377266956,1754309311839,-150.0,0.00037946,120]
[377266957,1754309311865,-1665.97,0.00037946,120]
[377266958,1754309311892,-305.61,0.00038106,120]
[377266959,1754309311918,-1000.0,0.00038256,2]
[377266960,1754309311944,-415.43087707,0.0003832,2]
[377266961,1754309313547,-584.56912293,0.0003832,2]
[377266962,1754309313573,-630.7462,0.0003832,2]
[377266963,1754309313601,-230.2184,0.0003832,2]
[377266964,1754309313626,-2500.0,0.0003832,2]
[377266965,1754309313746,-5055.037532,0.00038336,2]
[377266966,1754309313773,-3095.2398718,0.00038373,2]
[377266967,1754309313799,-159.98922792,0.00038373,2]
[377266968,1754309313826,-37744.19964535,0.0003842,2]
[377266969,1754309314313,-11832.93,0.00035858,2]
[377266970,1754309314339,-38167.07,0.0003842,2]
[377266971,1754309315162,-155.69583994,0.00035045,60]
[377266972,1754309315191,-49844.30416006,0.0003842,2]
[377266977,1754309360876,-150.0,0.000347,30]
[377266987,1754309431994,-606.54860783,0.00037419,120]
[377266988,1754309432051,-393.45139217,0.00037419,120]
[377266989,1754309432061,-1000.0,0.0003832,2]
[377266990,1754309432071,-5405.35596328,0.0003842,2]
[377266991,1754309432082,-494.06499999,0.0003842,2]
[377267020,1754309432843,-58187.51573132,0.0003842,2]
[377267021,1754309432853,-500.0,0.00038473,5]
[377267022,1754309432862,-150.0,0.0003851,12]
[377267023,1754309432873,-4398.33,0.00038678,2]
[377267024,1754309432884,-396.83,0.00038678,2]
[377267025,1754309432894,-150.99,0.00038678,2]
[377267026,1754309432903,-299.99,0.00038678,120]
[377267027,1754309432914,-457.2201239,0.00038855,2]
[377267028,1754309432923,-841.59890878,0.00038864,2]
[377267029,1754309432933,-203.22822605,0.000389,39]
[377267030,1754309432945,-1000.0,0.00039021,5]
[377267031,1754309432955,-507.84,0.0003903,2]
[377267032,1754309432964,-499.99,0.0003903,2]
[377267033,1754309432974,-150.0,0.00039451,2]
[377267034,1754309432984,-184.9,0.00039476,15]
[377267036,1754309432994,-1500.0,0.00039568,5]
[377267038,1754309433003,-1383.84708396,0.00039579,5]
[377267040,1754309433013,-1383.84708397,0.00039579,5]
[377267042,1754309433023,-3095.23987171,0.00040098,15]
[377267044,1754309433033,-1519.35412072,0.00040116,5]
[377267046,1754309433043,-500.0,0.00040272,2]
[377267047,1754309433051,-5424.20240304,0.0004029,2]
[377267050,1754309433063,-880.43603497,0.0004029,2]
[377267052,1754309433079,-7920.08439549,0.0004029,2]
[377267054,1754309433091,-3284.01709725,0.0004029,2]
[377267066,1754309437992,-2491.25006925,0.0004029,2]
[377267067,1754309438002,-1600.0,0.0004034,120]
[377267068,1754309438012,-1000.0,0.0004034,2]
[377267069,1754309438021,-500.0,0.00040546,3]
[377267070,1754309438031,-507.84,0.00040761,2]
[377267071,1754309438041,-500.0,0.0004082,4]
[377267072,1754309438051,-150.0,0.00040821,2]
[377267073,1754309438060,-500.0,0.00041094,5]
[377267074,1754309438070,-200.0,0.00041096,20]
[377267075,1754309438079,-184.9,0.00041121,120]
[377267076,1754309438089,-500.0,0.00041368,120]
[377267077,1754309438098,-500.0,0.00041642,120]
[377267078,1754309438108,-3095.23987171,0.00041823,15]
[377267079,1754309438117,-500.0,0.00041916,120]
[377267080,1754309438126,-500.0,0.0004219,120]
[377267081,1754309438136,-150.0,0.00042191,2]
[377267082,1754309438145,-500.0,0.00042329,2]
[377267083,1754309438155,-500.0,0.00042464,120]
[377267085,1754309438163,-507.84,0.00042491,120]
[377267086,1754309438173,-332.87,0.0004266,7]
[377267087,1754309438182,-500.0,0.00042738,120]
[377267088,1754309438192,-184.9,0.00042766,120]
[377267089,1754309438202,-457.2201239,0.00042883,3]
[377267090,1754309438212,-841.59890878,0.00042883,3]
[377267091,1754309438221,-17660.9438547,0.00042883,3]
[377267092,1754309438231,-1169.0,0.00042893,2]
[377267093,1754309438240,-500.0,0.00043012,120]
[377267094,1754309438250,-500.0,0.00043286,120]
[377267095,1754309438259,-3095.23987171,0.00043549,15]
[377267096,1754309438269,-500.0,0.0004356,120]
[377267097,1754309438278,-150.0,0.00043561,2]
[377267098,1754309438288,-500.0,0.00043834,120]
[377267099,1754309438297,-999.0,0.00043835,120]
[377267100,1754309438307,-500.0,0.00044108,120]
[377267101,1754309438316,-507.84,0.00044221,120]
[377267102,1754309438326,-500.0,0.00044382,120]
[377267103,1754309438336,-184.9,0.00044411,120]
[377267104,1754309438345,-153.64,0.00044521,2]
[377267105,1754309438355,-500.0,0.00044656,120]
[377267106,1754309438365,-17660.9438547,0.00044814,3]
[377267108,1754309438374,-1600.0,0.00044822,120]
[377267110,1754309438384,-1000.0,0.00044822,2]
[377267112,1754309438394,-252.34,0.00044824,2]
[377267114,1754309438403,-955.0,0.00044824,2]
[377267116,1754309438413,-468.831,0.00044824,2]
[377267118,1754309438422,-809.0,0.00044824,2]
[377267120,1754309438432,-2023.0,0.00044824,2]
[377267122,1754309438441,-1651.0,0.00044824,2]
[377267124,1754309438452,-500.0,0.0004493,120]
[377267126,1754309438461,-150.0,0.00044931,2]
[377267128,1754309438471,-291.5,0.00045204,120]
[377267130,1754309438481,-3095.23987171,0.00045274,15]
[377267132,1754309438491,-666.0,0.00045424,120]
[377267134,1754309438501,-666.0,0.00045424,120]
[377267136,1754309438510,-666.0,0.00045424,120]
[377267138,1754309438520,-666.0,0.00045424,120]
[377267140,1754309438530,-322.13342402,0.00045424,120]
[377267142,1754309438540,-999.0,0.00045616,120]
[377267144,1754309438550,-500.0,0.00045633,10]
[377267146,1754309438559,-875.0,0.00045893,120]
[377267148,1754309438570,-986.0,0.00045893,120]
[377267150,1754309438580,-784.994,0.00045893,2]
[377267152,1754309438590,-507.84,0.00045952,120]
[377267154,1754309438600,-184.9,0.00046056,120]
[377267156,1754309438610,-1000.0,0.00046181,10]
[377267158,1754309438620,-35321.8877094,0.00046291,3]
[377267160,1754309438630,-150.0,0.00046301,2]
[377267162,1754309438639,-500.0,0.00046301,120]
[377267164,1754309438649,-805.0,0.00046301,120]
[377267166,1754309438658,-500.0,0.00046301,120]
[377267168,1754309438667,-500.0,0.00046301,120]
[377267170,1754309438676,-500.0,0.00046301,120]
[377267172,1754309438686,-500.0,0.00046301,120]
[377267174,1754309438695,-500.0,0.00046301,120]
[377267176,1754309438705,-500.0,0.00046301,120]
[377267178,1754309438715,-500.0,0.00046301,120]
[377267180,1754309438724,-500.0,0.00046301,120]
[377267182,1754309438733,-500.0,0.00046301,120]
[377267184,1754309438743,-500.0,0.00046301,120]
[377267186,1754309438751,-500.0,0.00046301,120]
[377267188,1754309438761,-500.0,0.00046301,120]
[377267190,1754309438771,-500.0,0.00046301,120]
[377267192,1754309438780,-500.0,0.00046301,120]
[377267194,1754309438790,-500.0,0.00046301,120]
[377267196,1754309438799,-500.0,0.00046301,120]
[377267198,1754309438809,-500.0,0.00046301,120]
[377267200,1754309438819,-500.0,0.00046301,120]
[377267202,1754309438828,-500.0,0.00046301,120]
[377267204,1754309438838,-500.0,0.00046301,120]
[377267206,1754309438847,-500.0,0.00046301,120]
[377267208,1754309438857,-500.0,0.00046301,120]
[377267210,1754309438866,-500.0,0.00046301,120]
[377267212,1754309438877,-500.0,0.00046301,120]
[377267214,1754309438886,-500.0,0.00046301,120]
[377267216,1754309438896,-500.0,0.00046301,120]
[377267218,1754309438907,-500.0,0.00046301,120]